Cogmind - Beta 14 X2 @@@ ROGUE MODE // 2024.07.28 @ 11:04:06 Player: Plexion Result: Destroyed by M3-J71(R) with Subdweller Beam Cannon Performance ------------- Evolutions (0) 0 Regions Visited (2) 400 Robots Destroyed (31) 155 Value Destroyed (805) 805 Prototype IDs (0) 0 Alien Tech Used (0) 0 Bonus (0) 0 TOTAL SCORE: 1360 Bonus ------- None Cogmind --------- Core Integrity 0/250 Matter 70/300 Energy 50/100 System Corruption 0% Temperature Cool (9) Movement Treading (240) Ox1 Location -10/Subcaves Parts ------- > --- POWER (1) -------- Subdweller Power Source > --- PROPULSION (2) --- Light Treads Light Treads > --- UTILITY (2) ------ Large Storage Unit Makeshift Kinetic Plating > --- WEAPON (2) ------- Subdweller Beam Cannon Battle Cannon > --- INVENTORY (15) --- Light Treads Light Treads Compact Wheel Humpback Seismic Detector Light Armor Plating Gun Armor Heavy Assault Rifle Heavy Assault Rifle Subdweller Machine Gun Light Cannon Rocket Launcher Rocket Launcher Rocket Launcher Peak State ------------ > --- POWER ------------ Subdweller Power Source > --- PROPULSION ------- Light Treads Light Treads > --- UTILITY ---------- Large Storage Unit Makeshift Kinetic Plating > --- WEAPON ----------- Subdweller Beam Cannon Battle Cannon > --- INVENTORY -------- Light Treads Light Treads Compact Wheel Humpback Seismic Detector Light Armor Plating Gun Armor Heavy Assault Rifle Heavy Assault Rifle Heavy Assault Rifle Light Cannon Rocket Launcher Rocket Launcher Rocket Launcher [Rating: 15] Favorites ----------- Power Light Ion Engine Engine Light Ion Engine Propulsion Light Treads Treads Light Treads Utility Large Storage Unit Device Seismic Detector Storage Large Storage Unit Protection Makeshift Kinetic Plating Weapon Light Cannon Energy Cannon Subdweller Beam Cannon Ballistic Gun Heavy Assault Rifle Ballistic Cannon Light Cannon Launcher Rocket Launcher Build | -11 -10 -10 ------- Run | Yrd Mat Sub Slots Evolved . | . . . Power . | . . . Propulsion . | . . . Utility . | . . . Weapon . | . . . Parts Attached 37 | 6 9 22 Power 3 | 1 1 1 Engine 3 | 1 1 1 Core . | . . . Reactor . | . . . Propulsion 3 | 2 . 1 Treads 3 | 2 . 1 Leg . | . . . Wheel . | . . . Hover . | . . . Flight . | . . . Utility 14 | 1 3 10 Device 7 | . 2 5 Storage 2 | 1 1 . Processor . | . . . Hackware . | . . . Protection 5 | . . 5 Artifact . | . . . Weapon 17 | 2 5 10 Energy Gun . | . . . Energy Cannon 1 | . . 1 Ballistic Gun 6 | 2 2 2 Ballistic Cannon 7 | . 3 4 Launcher 3 | . . 3 Special Weapon . | . . . Impact Weapon . | . . . Slashing Weapon . | . . . Piercing Weapon . | . . . Special Melee Weapon . | . . . Unidentified Prototypes . | . . . Parts Lost 4 | . 1 3 Power 2 | . 1 1 Propulsion 1 | . . 1 Utility . | . . . Weapon 1 | . . 1 Highest Loss Streak 2 | . 1 2 To Critical Strikes . | . . . Average Slot Usage (%) 98 | . 99 96 Engine 13 | . 13 12 Treads 27 | . 28 27 Device 12 | . 13 10 Storage 14 | . 14 14 Protection 1 | . . 3 Energy Cannon 4 | . . 7 Ballistic Gun 8 | . 9 7 Ballistic Cannon 14 | . 18 11 Naked Turns . | . . . Heaviest Build 43 | 11 30 43 Greatest Support 40 | 40 40 40 Greatest Overweight (x) 1 | . . 1 Average Overweight (x) . | . . . Largest Inventory Capacity 15 | 8 15 15 Average Capacity 14 | 6 14 15 Most Carried 15 | 4 12 15 Average Carried 11 | 2 7 14 Final Capacity 15 | 8 15 15 Final Carried 15 | 4 11 15 Class Distribution -------------------- 100% | Mutant Dominant Class ---------------- Mutant | -10/Materials Mutant | -10/Subcaves Resources | -11 -10 -10 ----------- Run | Yrd Mat Sub Matter Collected 1068 | 217 495 356 Remotely . | . . . Salvage Created 831 | 29 599 203 Parts 54 | 5 37 12 Haulers Intercepted 2 | . 2 . Recyclers Shooed . | . . . Parts Field Recycled . | . . . Retrieved Matter . | . . . Parts Self-Destructed 6 | . . 6 Prevented . | . . . Kills | -11 -10 -10 ------- Run | Yrd Mat Sub Combat Hostiles Destroyed 25 | . 15 10 Guns 6 | . 3 3 Cannons 17 | . 12 5 AOE 2 | . . 2 Classes Destroyed 7 | 1 5 1 Tunneler 1 | 1 . . Hauler 2 | . 2 . Recycler 2 | . 2 . Watcher 1 | . 1 . Swarmer 7 | . 5 2 Grunt 10 | . 10 . Subdweller 8 | . . 8 Best Kill Streak 5 | 1 5 3 Combat Bots Only 5 | . 5 3 Max Kills in Single Turn 2 | 1 2 1 Gunslinging . | . . . Exploded 1 | . . 1 Melee . | . . . Uniques/NPCs Destroyed . | . . . Combat | -11 -10 -10 -------- Run | Yrd Mat Sub Hostile Shots Fired 115 | . 46 69 Missed 30 | . 9 21 Damage Taken 1479 | . 416 1063 Core 276 | . 75 201 Absorbed by Shields . | . . . Ignored by Resistances 11 | . . 11 Core Remaining (%) 100 | 100 . . Volleys Fired 116 | 3 48 65 Largest 2 | 2 2 2 Hottest 119 | 40 70 119 Shots Fired 203 | 6 96 101 Gun 46 | 6 20 20 Cannon 150 | . 76 74 Launcher 7 | . . 7 Special . | . . . Kinetic 179 | 6 96 77 Thermal 17 | . . 17 Explosive 7 | . . 7 Electromagnetic . | . . . Robot Hit Streak 11 | 3 6 11 Robot Miss Streak 3 | 1 3 2 Penetration Max . | . . . Secondary Targets . | . . . Shots Hit Robots 113 | 4 53 56 Core Hits 42 | 2 21 19 Critical Kills . | . . . Critical Parts Destroyed . | . . . Critical Strikes 5 | . 3 2 Blast 5 | . 3 2 Melee Attacks . | . . . Impact . | . . . Slashing . | . . . Piercing . | . . . Sneak Attacks . | . . . Combat Hostiles . | . . . Follow-up Attacks . | . . . Damage Inflicted 2686 | 54 986 1646 Guns 441 | 54 169 218 Cannons 1516 | . 782 734 Explosions 694 | . . 694 Melee . | . . . Ramming 35 | . 35 . Kinetic 1709 | 54 951 704 Thermal 248 | . . 248 Explosive 694 | . . 694 Electromagnetic . | . . . Impact . | . . . Slashing . | . . . Piercing . | . . . Highest Corruption . | . . . Average Corruption . | . . . Corruption Purged . | . . . Corruption Blocked . | . . . Overload Shots . | . . . Overflow Damage 19 | . 19 . Projectiles 19 | . 19 . Explosions . | . . . Melee . | . . . Knockbacks 15 | . 9 6 Impact . | . . . Kinetic 14 | . 8 6 Secondary 1 | . 1 . Self-Inflicted Damage 46 | . . 46 Shots 1 | . . 1 Rammed 4 | . 4 . Targets Rammed 4 | . 4 . Kicked . | . . . Crushed . | . . . Highest Temperature 141 | . 141 12 Average Temperature 47 | . 53 5 Received Heat Transfer 381 | . 180 201 Siege Activations . | . . . Robots Corrupted . | . . . Combat Hostiles . | . . . Parts Fried . | . . . Impact Corruptions . | . . . Robots Melted . | . . . Combat Hostiles . | . . . Parts Melted . | . . . Heat Transferred 333 | . . 333 Parts Sabotaged . | . . . Parts Stolen . | . . . Parts Stripped . | . . . Power Chain Reactions . | . . . Alert | -11 -10 -10 ------- Run | Yrd Mat Sub Peak Influence 256 | 5 256 . Initial 3 | . 3 . Average 126 | . 133 . Maximum Alert Level 1 | . 1 . Low Security (%) 63 | 100 61 . Level 1 36 | . 38 . Level 2 . | . . . Level 3 . | . . . Level 4 . | . . . Level 5 . | . . . High Security . | . . . Max Security . | . . . Squads Dispatched 2 | . 2 . Investigation . | . . . Extermination . | . . . Reinforcement 2 | . 2 . Assault . | . . . Garrison . | . . . Intercept . | . . . Searches Triggered . | . . . Construction Impeded . | . . . Haulers Reinforced . | . . . Active Scanning Responses . | . . . Cargo Convoy Interrupts . | . . . Stealth | -11 -10 -10 --------- Run | Yrd Mat Sub Distress Signals 5 | . 5 . Communications Jammed . | . . . Distress Signals . | . . . Times Spotted 49 | . 33 16 Peak Tracking Total 5 | . 5 5 Tactical Retreats 12 | . 8 4 Traps | -11 -10 -10 ------- Run | Yrd Mat Sub Traps Triggered . | . . . Indirectly . | . . . Trap Hack Attempts . | . . . Triggered . | . . . Disarmed . | . . . Reprogrammed 3 | . 3 . Reused 3 | . 3 . Traps Extracted . | . . . Installed . | . . . Triggered 3 | . 3 . Machines | -11 -10 -10 ---------- Run | Yrd Mat Sub Machines Disabled 1 | . 1 . Max in Single Turn 1 | . 1 . Machines Repaired . | . . . Machines Dismantled . | . . . Machines Sabotaged . | . . . Overloaded Fab Kills . | . . . Hacking | -11 -10 -10 --------- Run | Yrd Mat Sub Machines Accessed 8 | . 7 1 Terminals 7 | . 7 . Fabricators . | . . . Repair Stations . | . . . Recycling Units . | . . . Scanalyzers . | . . . Garrison Access . | . . . Total Hacks 36 | . 35 1 Successful 19 | . 18 1 Failed 16 | . 16 . Catastrophic 2 | . 2 . Database Lockouts 1 | . 1 . Manual 33 | . 33 . Terminals 35 | . 35 . Fabricators . | . . . Repair Stations . | . . . Recycling Units . | . . . Scanalyzers . | . . . Garrison Access . | . . . Terminal Hacks 8 | . 7 1 Robot Analysis 1 | . 1 . Open Door 1 | . . 1 Terminal Index 1 | . 1 . Reprogram Traps 2 | . 2 . Zone Layout 3 | . 3 . Fabricator Hacks . | . . . Repair Station Hacks . | . . . Recycling Unit Hacks . | . . . Scanalyzer . | . . . Garrison Access Hacks . | . . . Unauthorized Hacks 11 | . 11 . Terminals 11 | . 11 . Assimilate 1 | . 1 . Botnet 4 | . 4 . Operators 1 | . 1 . Skim 5 | . 5 . Fabricators . | . . . Repair Stations . | . . . Recycling Units . | . . . Scanalyzers . | . . . Garrison Access . | . . . Data Cores Recovered . | . . . Used . | . . . Hacking Detections 7 | . 7 . Full Trace Events . | . . . Feedback Events . | . . . Feedback Blocked . | . . . Robot Schematics Acquired . | . . . Robots Built . | . . . Authchips . | . . . Time . | . . . Total Robot Build Rating . | . . . Part Schematics Acquired . | . . . Parts Built . | . . . Authchips . | . . . Time . | . . . Total Part Build Rating . | . . . Parts Repaired . | . . . Time . | . . . Parts Recycled . | . . . Recycled Matter . | . . . Retrieved Matter . | . . . Retrieved Components . | . . . Parts Scanalyzed . | . . . Part Schematics Acquired . | . . . Parts Damaged . | . . . Bothacking | -11 -10 -10 ------------ Run | Yrd Mat Sub Used RIF Installer . | . . . Robots Hacked . | . . . Non-combat . | . . . Combat . | . . . Robot Hacks Applied . | . . . Relay Couplers Released . | . . . Fabnet Peak Effective % . | . . . Robots Rewired . | . . . Allies Hacked . | . . . Hacks Repelled . | . . . Allies | -11 -10 -10 -------- Run | Yrd Mat Sub Total Allies 1 | . 1 . Largest Group 1 | . 1 . Highest-Rated Group 10 | . 10 . Highest-Rated Ally 10 | . 10 . Total Orders . | . . . Ally Attacks . | . . . Total Damage . | . . . Kills . | . . . Allies Corrupted . | . . . Allies Melted . | . . . Intel | -11 -10 -10 ------- Run | Yrd Mat Sub Robot Analysis Total 1 | . 1 . Derelict Logs Recovered 2 | . . 2 Drone Launches . | . . . Drone Recoveries . | . . . Exploration | -11 -10 -10 ------------- Run | Yrd Mat Sub Turns Passed 3220 | 77 1463 1680 Spaces Moved 1414 | 40 605 769 Core 7 | 7 . . Treads 1407 | 33 605 769 Legs . | . . . Wheels . | . . . Hover . | . . . Flight . | . . . Fastest Speed 50 | 50 160 160 Average Speed 163 | 140 160 168 Slowest Speed 240 | 160 160 240 Overloaded Moves . | . . . Propulsion Burnouts . | . . . Robots Hopped . | . . . Cave-ins Triggered . | . . . Exploration Rate (%) 45 | 4 83 48 Regions Visited 2 Branch Regions 1 Pre-discovered Areas 3 | . 2 1 Known Exits Taken 1 | . 1 . Unknown Exits Taken 1 | 1 . . Scrap Searched . | . . . Spaces Dug . | . . . Terrain Destroyed 53 | . . 53 Melee . | . . . Projectile 5 | . . 5 AOE 48 | . . 48 Terrain Rammed . | . . . Walls Destroyed . | . . . Machines Disabled . | . . . Actions | -11 -10 -10 --------- Run | Yrd Mat Sub Total 2107 | 52 1005 1050 Wait 498 | . 314 184 Move 1412 | 39 604 769 Hop . | . . . Pick Up 24 | 4 14 6 Fast Attach 10 | 6 2 2 Attach 6 | . 3 3 Detach 5 | . 3 2 Swap 21 | . 4 17 Drop 11 | . 9 2 Fire 116 | 3 48 65 Melee . | . . . Ram . | . . . Kick . | . . . Crush 4 | . 4 . Escape Stasis . | . . . Rewire . | . . . Trap . | . . . Miscellaneous . | . . . Route ------- -11/Scrapyard -10/Materials (discovered 5 exits: *Mat x3 / [*Min] / *Sub) -10/Subcaves History --------- Turn | Location | Event 7 | -11/Scrapyard | Discovered new exit (range 15) 78 | -11/Scrapyard | Entered Materials 304 | -10/Materials | Discovered new exit (range 16) 310 | -10/Materials | Build established: Mutant 386 | -10/Materials | Central database locked down 553 | -10/Materials | Discovered new exit (range 16) 743 | -10/Materials | Discovered new exit (range 16) 944 | -10/Materials | Discovered new exit (range 10) 1006 | -10/Materials | Learned Storage stockpile data 1058 | -10/Materials | Learned Storage security intel 1099 | -10/Materials | Identified exit to Subcaves 1128 | -10/Materials | Learned 2 Mines zone layouts 1145 | -10/Materials | Identified exit to Materials 1153 | -10/Materials | Learned location of 2 exits from Mines 1159 | -10/Materials | Loaded intel: 21 trap records 1173 | -10/Materials | Learned location of Mines (-10) 1195 | -10/Materials | Learned location of Storage (-9) 1541 | -10/Materials | Entered Subcaves 1638 | -10/Subcaves | A Subdweller sparked back to life 1638 | -10/Subcaves | A Subdweller sparked back to life 1638 | -10/Subcaves | A Subdweller sparked back to life 1673 | -10/Subcaves | Found Prototype Protection 2022 | -10/Subcaves | Core integrity fell below 50% 2285 | -10/Subcaves | Shifting Twisted Machinery released Battle Cannon 2289 | -10/Subcaves | Shifting Twisted Machinery released Sub. Monowheel 2310 | -10/Subcaves | Shifting Twisted Machinery released Sub. Beam Cannon 2400 | -10/Subcaves | Shifting Twisted Machinery released Mak. Kinetic Plating 2568 | -10/Subcaves | Core integrity fell below 20% 2632 | -10/Subcaves | A swath of the cavern ceiling suddenly collapsed 2912 | -10/Subcaves | Ambushed by Subdwellers from Twisted Machinery 3068 | -10/Subcaves | Learned 4 Materials zone layouts 3221 | -10/Subcaves | Destroyed by M3-J71(R) with Subdweller Beam Cannon Last Messages --------------- 02799_ D9-A1R(R) destroyed. 02804_ Acquired 30 matter. 02809_ Acquired 7 matter. 02813_ Subatomizers dissect the Sub. Optics. 02814_ Dropped Hvy. Assault Rifle. 02815_ Acquired Sub. Machine Gun. 02818_ Acquired 2 matter. 02827_ Subatomizers dissect the Hvy. Assault Rifle. 02912_ OI-73J(R) emerges from the Twisted Machinery. 02928_ S-10 Pest destroyed. 02936_ Acquired 14 matter. 02962_ S-10 Pest destroyed. 02968_ Acquired 5 matter. 02970_ Acquired 1 matter. 02973_ Subatomizers dissect the Sub. Power Source. 02979_ Lgt. Ion Engine fries itself beyond repair. 03068_ Acquired derelict log, extracted data. Data stored: Materials zone layouts (x4). 03182_ M3-J71(R): "SUBSUUUUUB!" 03220_ M3-J71(R) knocked back. Map ----- +----------------------------------------------------+ | ?????????????????????????????????????????????????? | | ?????????????????????????????????????????????????? | | ?????????????????????????????????????????????????? | | ?????????????????????????????????????????????????? | | ?????????????????????????????????????????????????? | | ??????????????????????????????? ?????????????????? | | ?????????????????????????????? ???????????????? | | ????????????????????????????? #?????????????? | | ????????????????????????????? #?????????????? | | ????????????????????????????? #?????????????? | | ????????????????????????????? ??????????????? | | ????????????????????????????? ??????????????? | | ????????????????????????????? #???????????????? | | ?????????????????????????????# #???????????????? | | ????????????????????????????#; ####???#????????? | | ??????????????????????????### ## #????????? | | ??????????????????????##### #????????? | | ??????????????????????# #; ???????????? | | ????????????????????### #??????????????? | | ????????????????????# #< #??????????????? | | ????????????????????# %R% #??????????????? | | ????????????????????# #< ##?????????????? | | ???????????????????& "## #?##??????????? | | ??????????????????###??#; ### ##????????? | | ???????????????????????# ## ##???????? | | ???????????????????????#;@ ## #???????? | | ???????????????????????#### ## #???????? | | ??????????????????????????#### ## #?????### | | ??????????????????####???????## #?? ####### # | | ??????????????????# ####????# #??? ## # | | ??????????????????# ####?# #???# | | ?????????????????## ### #??## | | ?????????????????# ##??# | | ?????????????????######### ##??## | | ?????????????????????????## ##?### | | ??????????????????????????## #### | | ???????????????????????????# ## | | ???????????????????????????# ### | | ???????????????????????????## #?# | | ????????????????????????????# ### | | ??????????????????????????? ### | | ????????????????????????? ### #?## ### | | ??????????????????????? #?## ##??### ##?? | | ????????????????????? ### #???##?????####??? | | ???????????????????? ???# #????????????????? | | ????????????????????"????? ????????????????? | | ?????????????????????????"" ????????????????? | | ????????????????????????# ????????????????? | | ????????????????????????? ###????????????????? | | ????????????????????????# #???????????????????? | +----------------------------------------------------+ Best States ------------- Heat Dissipation 25 Energy Generation 15 Energy Capacity 200 Matter Stores 300 Matter Capacity 300 Sight Range 16 Terrain Scan Density 10 Armor Coverage 150 Resistance: KI 10 Evasion (%) 40 Recoil Reduction 2 Item Schematics ----------------- None Robot Schematics ------------------ None Fabricated ------------ Nothing Alien Tech Used ----------------- None Achievements -------------- None Challenges ------------ None Game ------ Seed ChainCommCompanion Manual? 0 Play Time 00:21:35 Cumulative 601.5 hours Start 2024.07.28 @ 10:47:32 End 2024.07.28 @ 11:04:06 Sessions 1 Manual Loads 0 Difficulty Rogue Special Mode None Game No. 658 Rogue 571 Adventurer 87 Explorer 0 Win Type - Total 35 Types 8/0/21/1/1/1/3/0/0 Lore% 92 Gallery% 92 Achievement% 79 Wizard Run 0 Options --------- Layout 0 ASCII 0 Keyboard 1 Movement Numpad Keybinds 0 Fullscreen 2 Font 16/SmallcapsGlow Map View 88x55 Zoom Use 0% Tactical HUD 1 Map Filters NONE Filters NONE Steam 1 RUN: 6a8fc928-af77-4b9a-84a5-5cd8f1b521ef